[Event "FIDE World Senior-Women CC 2023"]
[Site "Terrasini"]
[Date "2023.11.01"]
[Round "7.4"]
[White "Khropova, Larisa"]
[Black "Krasenkowa, Elena"]
[Result "1-0"]
[ECO "D30"]
[WhiteElo "2054"]
[BlackElo "2089"]
[Annotator "NA"]
[PlyCount "153"]
[EventDate "2023.10.22"]
[EventType "swiss"]
[EventCountry "ITA"]
[SourceTitle "playchess.com"]
[Source "ChessBase"]
[SourceQuality "1"]
[TimeControl "40/5400+30:1800+30"]

1. Nf3 {[%emt 0:00:12]} d5 {[%emt 0:00:10]} 2. d4 {[%emt 0:00:56]} Nf6 {[%emt 0:00:05]} 3. c4 {[%emt 0:00:11]} e6 {[%emt 0:00:09]} 4. Bg5 {[%emt 0:00:40]} dxc4 {[%emt 0:00:18]} 5. Qa4+ {[%emt 0:00:50]} Nbd7 {[%emt 0:00:17]} 6. Qxc4 {[%emt 0:00:17]} a6 {[%emt 0:00:13]} 7. Nbd2 {[%emt 0:02:49]} c5 {[%emt 0:01:07]} 8. e3 {[%emt 0:08:18]} b5 {[%emt 0:01:17]} 9. Qc2 {[%emt 0:00:27]} Bb7 {[%emt 0:00:11]} 10. Be2 {[%emt 0:03:28]} Rc8 {[%emt 0:00:28]} 11. Qd1 {[%emt 0:02:01]} cxd4 {[%emt 0:03:54]} 12. exd4 {[%emt 0:00:22]} h6 {[%emt 0:01:57]} 13. Be3 {[%emt 0:09:45]} Nd5 {[%emt 0:00:22]} 14. O-O {[%emt 0:00:24]} Be7 {[%emt 0:01:56]} 15. Nb3 {[%emt 0:02:03]} Nxe3 {[%emt 0:02:45]} 16. fxe3 {[%emt 0:00:06]} O-O {[%emt 0:00:02]} 17. Bd3 {[%emt 0:04:14]} Qb6 {[%emt 0:05:21]} 18. Qe2 {[%emt 0:00:49]} Rc7 {[%emt 0:03:56]} 19. Kh1 {[%emt 0:04:22]} Bd5 {[%emt 0:03:11]} 20. Nbd2 {[%emt 0:02:54]} Rfc8 {[%emt 0:01:23]} 21. e4 {[%emt 0:12:15]} Bc4 {[%emt 0:00:08]} 22. e5 {[%emt 0:00:28]} Bxd3 {[%emt 0:01:35]} 23. Qxd3 {[%emt 0:44:09]} Rc2 {[%emt 0:01:36]} 24. Rab1 {[%emt 0:00:00]} Qb7 {[%emt 0:05:30]} 25. Ne4 {[%emt 0:00:00]} Qd5 {[%emt 0:04:41]} 26. Nc3 {[%emt 0:00:00]} R8xc3 {[%emt 0:00:08]} 27. bxc3 {[%emt 0:00:00]} Rxa2 {[%emt 0:00:04]} 28. Rg1 {[%emt 0:00:00]} Nc5 {[%emt 0:02:28]} 29. Qe3 {[%emt 0:00:00]} Ne4 {[%emt 0:00:29]} 30. h3 {[%emt 0:00:00]} Ra3 {[%emt 0:00:31]} 31. Rgc1 {[%emt 0:00:00]} b4 {[%emt 0:03:06]} 32. c4 {[%emt 0:00:00]} Qc6 {[%emt 0:00:18]} 33. Rb3 {[%emt 0:00:00]} Ra2 {[%emt 0:08:50]} 34. Kh2 {[%emt 0:05:30]} Nc3 {[%emt 0:01:56]} 35. Rbxc3 {[%emt 0:00:00]} bxc3 {[%emt 0:00:45]} 36. Qxc3 {[%emt 0:00:00]} a5 {[%emt 0:03:22]} 37. c5 {[%emt 0:00:00]} Bd8 {[%emt 0:06:56]} 38. Qb3 {[%emt 0:00:00]} Re2 {[%emt 0:00:42]} 39. Rb1 {[%emt 0:00:00]} Qe4 {[%emt 0:02:21]} 40. Qb7 {[%emt 0:00:00]} Qf4+ {[%emt 0:00:05]} 41. Kh1 {[%emt 0:24:59]} Bg5 {[%emt 1:06:27]} 42. Rg1 {[%emt 0:00:00]} Rc2 {[%emt 0:00:00]} 43. Qa8+ {[%emt 0:00:00]} Kh7 {[%emt 0:00:00]} 44. Qxa5 {[%emt 0:00:00]} Qe4 {[%emt 0:00:00]} 45. Nxg5+ {[%emt 0:00:00]} hxg5 {[%emt 0:00:00]} 46. Qb4 {[%emt 0:00:00]} Kg6 {[%emt 0:00:00]} 47. Qb3 {[%emt 0:00:00]} Rd2 {[%emt 0:00:00]} 48. Qb1 {[%emt 0:00:00]} Qxb1 {[%emt 0:00:00]} 49. Rxb1 {[%emt 0:00:00]} Rxd4 {[%emt 0:00:00]} 50. Rc1 {[%emt 0:00:00]} Rd7 {[%emt 0:00:00]} 51. c6 {[%emt 0:00:48]} Rc7 {[%emt 0:00:00]} 52. g4 {[%emt 0:01:46]} f6 {[%emt 0:00:00]} 53. Kg2 {[%emt 0:00:16]} Kf7 {[%emt 0:00:00]} 54. Kf3 {[%emt 0:00:14]} Ke7 {[%emt 0:00:00]} 55. Ke4 {[%emt 0:00:11]} Kd8 {[%emt 0:00:00]} 56. Rd1+ {[%emt 0:00:23]} Kc8 {[%emt 0:00:00]} 57. Rd6 {[%emt 0:00:22]} Re7 {[%emt 0:00:00]} 58. Kd4 {[%emt 0:01:18]} Kc7 {[%emt 0:00:00]} 59. Kc5 {[%emt 0:00:20]} fxe5 {[%emt 0:00:00]} 60. Rd1 {[%emt 0:00:07]} Rf7 {[%emt 0:00:00]} 61. Ra1 {[%emt 0:00:59]} Rf3 {[%emt 0:00:00]} 62. Ra7+ {[%emt 0:00:11]} Kc8 {[%emt 0:00:00]} 63. Rxg7 {[%emt 0:01:07]} Rxh3 {[%emt 0:00:00]} 64. Rxg5 {[%emt 0:01:05]} e4 {[%emt 0:00:00]} 65. Kd6 {[%emt 0:00:27]} Rd3+ {[%emt 0:00:00]} 66. Kxe6 {[%emt 0:00:15]} Kc7 {[%emt 0:00:00]} 67. Re5 {[%emt 0:00:16]} e3 {[%emt 0:00:00]} 68. g5 {[%emt 0:00:16]} Kxc6 {[%emt 0:00:00]} 69. g6 {[%emt 0:00:17]} e2 {[%emt 0:00:00]} 70. Rxe2 {[%emt 0:00:24]} Rg3 {[%emt 0:00:00]} 71. Rc2+ {[%emt 0:00:12]} Kb7 {[%emt 0:00:00]} 72. Kf7 {[%emt 0:00:19]} Rf3+ {[%emt 0:00:00]} 73. Kg8 {[%emt 0:00:31]} Kb8 {[%emt 0:00:00]} 74. g7 {[%emt 0:00:52]} Rf1 {[%emt 0:00:00]} 75. Rh2 {[%emt 0:00:17]} Kc7 {[%emt 0:00:00]} 76. Kh8 {[%emt 0:00:17]} Rg1 {[%emt 0:00:00]} 77. g8=Q {[%emt 0:00:11]} 1-0

[Event "FIDE World Senior-Women CC 2023"]
[Site "Terrasini"]
[Date "2023.11.01"]
[Round "7.5"]
[White "Pancu, Aureliana-Eugenia"]
[Black "Gaprindashvili, Nona"]
[Result "0-1"]
[ECO "B10"]
[WhiteElo "1865"]
[BlackElo "2267"]
[Annotator "ChessBase"]
[PlyCount "70"]
[EventDate "2023.10.22"]
[EventType "swiss"]
[EventCountry "ITA"]
[SourceTitle "playchess.com"]
[Source "ChessBase"]
[SourceQuality "1"]
[TimeControl "40/5400+30:1800+30"]

1. Nf3 {[%emt 0:00:05]} g6 {[%emt 0:00:09]} 2. g3 {[%emt 0:00:10]} Bg7 {[%emt 0:00:13]} 3. Bg2 {[%emt 0:00:10]} e5 {[%emt 0:00:21]} 4. d3 {[%emt 0:00:15]} d5 {[%emt 0:00:39]} 5. Nbd2 {[%emt 0:00:24]} Ne7 {[%emt 0:01:06]} 6. e4 {[%emt 0:00:24]} c6 {[%emt 0:00:35]} 7. O-O {[%emt 0:00:30]} O-O {[%emt 0:03:09]} 8. Re1 {[%emt 0:02:44]} d4 {[%emt 0:05:59]} 9. a4 {[%emt 0:04:35]} c5 {[%emt 0:01:21]} 10. Nc4 {[%emt 0:01:32]} Nbc6 {[%emt 0:00:18]} 11. Bd2 {[%emt 0:09:33]} b6 {[%emt 0:05:49]} 12. Qc1 {[%emt 0:05:53]} f6 {[%emt 0:00:55]} 13. Bh6 {[%emt 0:04:54]} Be6 {[%emt 0:00:24]} 14. Bxg7 {[%emt 0:02:58]} Kxg7 {[%emt 0:00:02]} 15. Ncd2 {[%emt 0:02:13]} Nb4 {[%emt 0:08:48]} 16. Bf1 {[%emt 0:04:46]} Rc8 {[%emt 0:02:21]} 17. b3 {[%emt 0:01:05]} Qc7 {[%emt 0:01:44]} 18. Nb1 {[%emt 0:04:26]} a6 {[%emt 0:03:23]} 19. Na3 {[%emt 0:00:16]} Rb8 {[%emt 0:02:43]} 20. c3 {[%emt 0:07:04]} dxc3 {[%emt 0:01:16]} 21. Qxc3 {[%emt 0:00:14]} Nec6 {[%emt 0:05:56]} 22. Nc2 {[%emt 0:07:15]} Nxc2 {[%emt 0:03:16]} 23. Qxc2 {[%emt 0:00:09]} Qf7 {[%emt 0:03:31]} 24. Rab1 {[%emt 0:04:17]} Rbc8 {[%emt 0:01:37]} 25. h3 {[%emt 0:02:42]} Nd4 {[%emt 0:02:29]} 26. Nxd4 {[%emt 0:00:22]} cxd4 {[%emt 0:00:02]} 27. Qd2 {[%emt 0:04:35]} Rc3 {[%emt 0:00:21]} 28. b4 {[%emt 0:00:23]} Rfc8 {[%emt 0:06:04]} 29. Rb2 {[%emt 0:05:12]} Qd7 {[%emt 0:01:07]} 30. a5 {[%emt 0:02:17]} b5 {[%emt 0:02:04]} 31. h4 {[%emt 0:00:19]} R8c7 {[%emt 0:06:03]} 32. f4 {[%emt 0:08:22]} h6 {[%emt 0:02:53]} 33. h5 {[%emt 0:01:16]} g5 {[%emt 0:01:06]} 34. f5 {[%emt 0:00:45]} Bb3 {[%emt 0:00:18]} 35. Qf2 {[%emt 0:01:50]} Qd6 {[%emt 0:00:47]} 0-1

[Event "FIDE World Senior-Women CC 2023"]
[Site "Terrasini"]
[Date "2023.11.02"]
[Round "8.1"]
[White "Strutinskaia, Galina"]
[Black "Tereladze, Sopio"]
[Result "1/2-1/2"]
[ECO "D33"]
[WhiteElo "2114"]
[BlackElo "2215"]
[Annotator "ChessBase"]
[PlyCount "42"]
[EventDate "2023.10.22"]
[EventType "swiss"]
[EventCountry "ITA"]
[SourceTitle "playchess.com"]
[Source "ChessBase"]
[SourceQuality "1"]
[TimeControl "40/5400+30:1800+30"]

1. d4 {[%emt 0:00:04]} d5 {[%emt 0:00:22]} 2. c4 {[%emt 0:00:11]} e6 {[%emt 0:00:05]} 3. Nc3 {[%emt 0:00:26]} c5 {[%emt 0:00:19]} 4. cxd5 {[%emt 0:01:37]} exd5 {[%emt 0:00:34]} 5. Nf3 {[%emt 0:00:18]} Nf6 {[%emt 0:00:39]} 6. g3 {[%emt 0:02:13]} Nc6 {[%emt 0:00:49]} 7. Bg2 {[%emt 0:00:40]} cxd4 {[%emt 0:00:07]} 8. Nxd4 {[%emt 0:00:25]} Bc5 {[%emt 0:00:02]} 9. Nb3 {[%emt 0:05:15]} Bb6 {[%emt 0:00:13]} 10. O-O {[%emt 0:00:29]} d4 {[%emt 0:00:37]} 11. Na4 {[%emt 0:02:32]} O-O {[%emt 0:01:15]} 12. Bg5 {[%emt 0:01:14]} Bg4 {[%emt 0:11:11]} 13. h3 {[%emt 0:01:36]} Be6 {[%emt 0:03:57]} 14. Nac5 {[%emt 0:00:26]} Bxb3 {[%emt 0:04:30]} 15. Nxb3 {[%emt 0:00:07]} h6 {[%emt 0:00:26]} 16. Bf4 {[%emt 0:00:56]} Re8 {[%emt 0:01:59]} 17. Rc1 {[%emt 0:00:54]} Qe7 {[%emt 0:04:57]} 18. Rxc6 {[%emt 0:02:44]} bxc6 {[%emt 0:00:08]} 19. Bxc6 {[%emt 0:00:04]} Rad8 {[%emt 0:00:52]} 20. Bxe8 {[%emt 0:00:18]} Qxe8 {[%emt 0:00:02]} 21. Qd3 {[%emt 0:00:42]} Qe6 {[%emt 0:03:08]} 1/2-1/2

[Event "FIDE World Senior-Women CC 2023"]
[Site "Terrasini"]
[Date "2023.11.02"]
[Round "8.2"]
[White "Makropoulou, Marina"]
[Black "Calzetta Ruiz, Monica"]
[Result "0-1"]
[ECO "B51"]
[WhiteElo "2081"]
[BlackElo "2239"]
[Annotator "ChessBase"]
[PlyCount "102"]
[EventDate "2023.10.22"]
[EventType "swiss"]
[EventCountry "ITA"]
[SourceTitle "playchess.com"]
[Source "ChessBase"]
[SourceQuality "1"]
[TimeControl "40/5400+30:1800+30"]

1. e4 {[%emt 0:00:05]} c5 {[%emt 0:00:05]} 2. Nf3 {[%emt 0:00:13]} d6 {[%emt 0:00:08]} 3. Bb5+ {[%emt 0:00:06]} Nd7 {[%emt 0:00:35]} 4. O-O {[%emt 0:00:07]} a6 {[%emt 0:00:25]} 5. Be2 {[%emt 0:00:26]} Ngf6 {[%emt 0:00:24]} 6. d3 {[%emt 0:00:26]} g6 {[%emt 0:05:15]} 7. a4 {[%emt 0:01:44]} b6 {[%emt 0:00:57]} 8. c4 {[%emt 0:04:13]} Bg7 {[%emt 0:02:26]} 9. Nc3 {[%emt 0:00:08]} Bb7 {[%emt 0:00:34]} 10. h3 {[%emt 0:03:52]} O-O {[%emt 0:03:55]} 11. Be3 {[%emt 0:00:47]} Re8 {[%emt 0:10:23]} 12. Nh2 {[%emt 0:05:38]} e6 {[%emt 0:10:38]} 13. g4 {[%emt 0:01:48]} d5 {[%emt 0:03:11]} 14. g5 {[%emt 0:17:14]} Nxe4 {[%emt 0:05:19]} 15. Nxe4 {[%emt 0:14:25]} dxe4 {[%emt 0:01:54]} 16. Ng4 {[%emt 0:14:15]} exd3 {[%emt 0:02:17]} 17. Bxd3 {[%emt 0:00:22]} Ne5 {[%emt 0:00:43]} 18. Nxe5 {[%emt 0:00:24]} Bxe5 {[%emt 0:00:08]} 19. Qc2 {[%emt 0:00:34]} Bxb2 {[%emt 0:28:00]} 20. Bxg6 {[%emt 0:04:56]} hxg6 {[%emt 0:00:30]} 21. Qxb2 {[%emt 0:00:05]} Qd3 {[%emt 0:06:08]} 22. Kh2 {[%emt 0:04:29]} Qd6+ {[%emt 0:03:09]} 23. Kg1 {[%emt 0:01:48]} Qc6 {[%emt 0:02:04]} 24. f3 {[%emt 0:00:05]} e5 {[%emt 0:01:37]} 25. Rab1 {[%emt 0:01:01]} Qe6 {[%emt 0:03:44]} 26. Kg2 {[%emt 0:11:09]} Qxc4 {[%emt 0:01:16]} 27. Qxb6 {[%emt 0:00:20]} Qe2+ {[%emt 0:00:34]} 28. Kg3 {[%emt 0:01:48]} Qxe3 {[%emt 0:00:18]} 29. Qxb7 {[%emt 0:00:05]} Qxg5+ {[%emt 0:00:09]} 30. Kh2 {[%emt 0:00:51]} Rad8 {[%emt 0:00:27]} 31. Rb2 {[%emt 0:01:59]} Rd2+ {[%emt 0:00:43]} 32. Rxd2 {[%emt 0:00:03]} Qxd2+ {[%emt 0:00:08]} 33. Kh1 {[%emt 0:05:42]} Qe2 {[%emt 0:01:12]} 34. Rc1 {[%emt 0:00:24]} Rd8 {[%emt 0:00:22]} 35. Qe4 {[%emt 0:00:29]} Qxe4 {[%emt 0:04:41]} 36. fxe4 {[%emt 0:00:01]} Rc8 {[%emt 0:00:20]} 37. Rc4 {[%emt 0:00:41]} Kf8 {[%emt 0:00:09]} 38. Kg2 {[%emt 0:00:06]} Ke7 {[%emt 0:00:13]} 39. Kf3 {[%emt 0:00:16]} Kd6 {[%emt 0:00:10]} 40. Kg4 {[%emt 0:00:37]} f6 {[%emt 0:00:12]} 41. h4 {[%emt 0:30:19]} Rb8 {[%emt 0:30:40]} 42. h5 {[%emt 0:00:18]} gxh5+ {[%emt 0:00:16]} 43. Kf5 {[%emt 0:01:08]} Rb4 {[%emt 0:00:24]} 44. Rc1 {[%emt 0:00:06]} Rxa4 {[%emt 0:00:26]} 45. Rd1+ {[%emt 0:00:21]} Ke7 {[%emt 0:04:49]} 46. Rh1 {[%emt 0:00:22]} Ra2 {[%emt 0:00:00]} 47. Rxh5 {[%emt 0:00:00]} Rf2+ {[%emt 0:00:00]} 48. Kg6 {[%emt 0:00:00]} Rg2+ {[%emt 0:00:00]} 49. Kh6 {[%emt 0:00:00]} Rg8 {[%emt 0:00:00]} 50. Kh7 {[%emt 0:00:00]} Rg4 {[%emt 0:00:00]} 51. Rh2 {[%emt 0:00:00]} Kf7 {[%emt 0:00:00]} 0-1

[Event "FIDE World Senior-Women CC 2023"]
[Site "Terrasini"]
[Date "2023.11.02"]
[Round "8.3"]
[White "Leszner, Liliana"]
[Black "Khropova, Larisa"]
[Result "1/2-1/2"]
[ECO "B23"]
[WhiteElo "1891"]
[BlackElo "2054"]
[Annotator "NA"]
[PlyCount "44"]
[EventDate "2023.10.22"]
[EventType "swiss"]
[EventCountry "ITA"]
[SourceTitle "playchess.com"]
[Source "ChessBase"]
[SourceQuality "1"]
[TimeControl "40/5400+30:1800+30"]

1. e4 {[%emt 0:00:02]} c5 {[%emt 0:00:05]} 2. Nc3 {[%emt 0:00:17]} e6 {[%emt 0:00:15]} 3. g3 {[%emt 0:00:18]} d5 {[%emt 0:00:51]} 4. d3 {[%emt 0:02:26]} d4 {[%emt 0:00:52]} 5. Nce2 {[%emt 0:00:13]} b6 {[%emt 0:01:50]} 6. Bg2 {[%emt 0:00:38]} Bb7 {[%emt 0:00:06]} 7. Nf3 {[%emt 0:02:50]} Nf6 {[%emt 0:00:30]} 8. O-O {[%emt 0:00:39]} Be7 {[%emt 0:00:36]} 9. h3 {[%emt 0:01:07]} Nc6 {[%emt 0:01:28]} 10. Bg5 {[%emt 0:03:41]} Nd7 {[%emt 0:02:01]} 11. Bxe7 {[%emt 0:00:46]} Qxe7 {[%emt 0:00:05]} 12. Qd2 {[%emt 0:00:53]} O-O {[%emt 0:02:12]} 13. Nh4 {[%emt 0:01:53]} g5 {[%emt 0:07:27]} 14. Nf3 {[%emt 0:02:21]} f6 {[%emt 0:00:09]} 15. Nh2 {[%emt 0:00:22]} Kh8 {[%emt 0:04:36]} 16. f4 {[%emt 0:02:05]} Rg8 {[%emt 0:01:58]} 17. g4 {[%emt 0:04:48]} gxf4 {[%emt 0:04:00]} 18. Nxf4 {[%emt 0:00:46]} Nce5 {[%emt 0:00:27]} 19. Nh5 {[%emt 0:00:48]} Raf8 {[%emt 0:00:33]} 20. Rf2 {[%emt 0:04:50]} Qe8 {[%emt 0:20:55]} 21. Ng3 {[%emt 0:12:51]} Qb8 {[%emt 0:09:41]} 22. Qf4 {[%emt 0:11:21]} c4 {[%emt 0:12:31]} 1/2-1/2

[Event "FIDE World Senior-Women CC 2023"]
[Site "Terrasini"]
[Date "2023.11.02"]
[Round "8.4"]
[White "Klinova, Masha"]
[Black "Folkova, Martina"]
[Result "1/2-1/2"]
[ECO "C54"]
[WhiteElo "2249"]
[BlackElo "2022"]
[Annotator "ChessBase"]
[PlyCount "44"]
[EventDate "2023.10.22"]
[EventType "swiss"]
[EventCountry "ITA"]
[SourceTitle "playchess.com"]
[Source "ChessBase"]
[SourceQuality "1"]
[TimeControl "40/5400+30:1800+30"]

1. e4 {[%emt 0:00:01]} e5 {[%emt 0:00:36]} 2. Nf3 {[%emt 0:00:05]} Nc6 {[%emt 0:00:08]} 3. Bc4 {[%emt 0:00:05]} Bc5 {[%emt 0:00:16]} 4. c3 {[%emt 0:00:26]} Nf6 {[%emt 0:00:15]} 5. d3 {[%emt 0:00:05]} a6 {[%emt 0:00:37]} 6. Bb3 {[%emt 0:01:20]} Ba7 {[%emt 0:00:50]} 7. O-O {[%emt 0:00:34]} O-O {[%emt 0:00:42]} 8. Nbd2 {[%emt 0:00:49]} d6 {[%emt 0:00:53]} 9. Nc4 {[%emt 0:01:44]} Be6 {[%emt 0:02:03]} 10. Bg5 {[%emt 0:14:11]} h6 {[%emt 0:01:03]} 11. Bh4 {[%emt 0:01:24]} g5 {[%emt 0:15:16]} 12. Bg3 {[%emt 0:04:08]} Ne7 {[%emt 0:09:57]} 13. Ne3 {[%emt 0:01:36]} Ng6 {[%emt 0:05:21]} 14. Bc2 {[%emt 0:06:29]} Nh5 {[%emt 0:20:52]} 15. d4 {[%emt 0:15:08]} g4 {[%emt 0:05:48]} 16. Ne1 {[%emt 0:07:20]} Qg5 {[%emt 0:00:36]} 17. Nf5 {[%emt 0:02:13]} Ng7 {[%emt 0:03:33]} 18. f3 {[%emt 0:10:30]} Nxf5 {[%emt 0:06:07]} 19. exf5 {[%emt 0:00:20]} Bxf5 {[%emt 0:00:09]} 20. Bxf5 {[%emt 0:01:22]} Qxf5 {[%emt 0:00:05]} 21. fxg4 {[%emt 0:00:13]} Qe6 {[%emt 0:00:48]} 22. Nc2 {[%emt 0:07:36]} f5 {[%emt 0:02:03]} 1/2-1/2

[Event "FIDE World Senior-Women CC 2023"]
[Site "Terrasini"]
[Date "2023.11.02"]
[Round "8.5"]
[White "Krasenkowa, Elena"]
[Black "Gaprindashvili, Nona"]
[Result "1/2-1/2"]
[ECO "A44"]
[WhiteElo "2089"]
[BlackElo "2267"]
[Annotator "ChessBase"]
[PlyCount "47"]
[EventDate "2023.10.22"]
[EventType "swiss"]
[EventCountry "ITA"]
[SourceTitle "playchess.com"]
[Source "ChessBase"]
[SourceQuality "1"]
[TimeControl "40/5400+30:1800+30"]

1. d4 {[%emt 0:00:02]} c5 {[%emt 0:00:35]} 2. d5 {[%emt 0:00:05]} e5 {[%emt 0:00:07]} 3. e4 {[%emt 0:00:05]} d6 {[%emt 0:00:09]} 4. Bb5+ {[%emt 0:00:05]} Nd7 {[%emt 0:00:49]} 5. a4 {[%emt 0:00:12]} g6 {[%emt 0:00:47]} 6. Nf3 {[%emt 0:00:29]} f6 {[%emt 0:00:28]} 7. Nc3 {[%emt 0:00:24]} Nh6 {[%emt 0:00:13]} 8. O-O {[%emt 0:00:39]} Bg7 {[%emt 0:01:09]} 9. a5 {[%emt 0:02:18]} a6 {[%emt 0:02:24]} 10. Bc4 {[%emt 0:07:25]} Nf7 {[%emt 0:02:22]} 11. Be3 {[%emt 0:00:35]} O-O {[%emt 0:00:15]} 12. Nd2 {[%emt 0:00:22]} Bh6 {[%emt 0:10:26]} 13. Qe2 {[%emt 0:01:30]} Bxe3 {[%emt 0:10:26]} 14. Qxe3 {[%emt 0:00:43]} b5 {[%emt 0:08:22]} 15. axb6 {[%emt 0:00:16]} Nxb6 {[%emt 0:00:02]} 16. Ra3 {[%emt 0:04:37]} Nxc4 {[%emt 0:04:30]} 17. Nxc4 {[%emt 0:00:04]} Rb8 {[%emt 0:02:19]} 18. b3 {[%emt 0:00:56]} Qc7 {[%emt 0:05:54]} 19. Rfa1 {[%emt 0:08:07]} Kg7 {[%emt 0:00:23]} 20. Ne2 {[%emt 0:06:07]} Re8 {[%emt 0:06:54]} 21. Nc3 {[%emt 0:13:48]} Rb4 {[%emt 0:06:54]} 22. Na2 {[%emt 0:01:02]} Rb8 {[%emt 0:00:03]} 23. Nc3 {[%emt 0:00:05]} Rb4 {[%emt 0:00:15]} 24. Na2 {[%emt 0:04:09]} 1/2-1/2

[Event "FIDE World Senior-Women CC 2023"]
[Site "Terrasini"]
[Date "2023.11.03"]
[Round "9.1"]
[White "Calzetta Ruiz, Monica"]
[Black "Tereladze, Sopio"]
[Result "1-0"]
[ECO "C91"]
[WhiteElo "2239"]
[BlackElo "2215"]
[Annotator "RC"]
[PlyCount "51"]
[EventDate "2023.10.22"]
[EventType "swiss"]
[EventCountry "ITA"]
[SourceTitle "playchess.com"]
[Source "ChessBase"]
[SourceQuality "1"]
[TimeControl "40/5400+30:1800+30"]

1. e4 {[%emt 0:00:06]} e5 {[%emt 0:00:08]} 2. Nf3 {[%emt 0:00:07]} Nc6 {[%emt 0:00:02]} 3. Bb5 {[%emt 0:00:08]} a6 {[%emt 0:00:04]} 4. Ba4 {[%emt 0:00:06]} Nf6 {[%emt 0:00:03]} 5. O-O {[%emt 0:00:31]} Be7 {[%emt 0:00:04]} 6. Re1 {[%emt 0:00:17]} b5 {[%emt 0:00:04]} 7. Bb3 {[%emt 1:32:45]} O-O {[%emt 0:00:02]} 8. d4 {[%emt 0:00:00]} d6 {[%emt 0:00:24]} 9. c3 {[%emt 0:00:00]} Bg4 {[%emt 0:00:43]} 10. Be3 {[%emt 0:00:00]} exd4 {[%emt 0:06:23]} 11. cxd4 {[%emt 0:00:00]} d5 {[%emt 0:00:25]} 12. e5 {[%emt 0:00:00]} Ne4 {[%emt 0:00:29]} 13. Nc3 {[%emt 0:00:00]} Nxc3 {[%emt 0:01:39]} 14. bxc3 {[%emt 0:00:00]} Na5 {[%emt 0:07:11]} 15. Bc2 {[%emt 0:00:00]} Bh5 {[%emt 0:02:33]} 16. a4 {[%emt 0:00:00]} Nc4 {[%emt 0:08:12]} 17. axb5 {[%emt 0:00:00]} axb5 {[%emt 0:07:22]} 18. Rxa8 {[%emt 0:00:00]} Qxa8 {[%emt 0:00:01]} 19. Qb1 {[%emt 0:00:00]} Na3 {[%emt 0:09:57]} 20. Bxh7+ {[%emt 0:00:00]} Kh8 {[%emt 0:00:01]} 21. Qf5 {[%emt 0:00:00]} g6 {[%emt 0:01:44]} 22. Qf4 {[%emt 0:00:00]} Kxh7 {[%emt 0:01:32]} 23. Qh6+ {[%emt 0:00:00]} Kg8 {[%emt 0:00:00]} 24. Ng5 {[%emt 0:00:00]} Bxg5 {[%emt 0:00:16]} 25. Bxg5 {[%emt 0:00:00]} f6 {[%emt 0:01:16]} 26. Bxf6 {[%emt 0:09:30]} 1-0

[Event "FIDE World Senior-Women CC 2023"]
[Site "Terrasini"]
[Date "2023.11.03"]
[Round "9.2"]
[White "Khropova, Larisa"]
[Black "Strutinskaia, Galina"]
[Result "0-1"]
[ECO "A47"]
[WhiteElo "2054"]
[BlackElo "2114"]
[Annotator "NA RC"]
[PlyCount "104"]
[EventDate "2023.10.22"]
[EventType "swiss"]
[EventCountry "ITA"]
[SourceTitle "playchess.com"]
[Source "ChessBase"]
[SourceQuality "1"]
[TimeControl "40/5400+30:1800+30"]

1. d4 {[%emt 0:00:03]} Nf6 {[%emt 0:00:48]} 2. Nf3 {[%emt 0:00:30]} e6 {[%emt 0:00:45]} 3. Bf4 {[%emt 0:00:53]} b6 {[%emt 0:00:38]} 4. e3 {[%emt 0:00:37]} Bb7 {[%emt 0:00:44]} 5. Bd3 {[%emt 0:02:38]} Nh5 {[%emt 0:02:27]} 6. Bg5 {[%emt 0:01:52]} f6 {[%emt 0:00:50]} 7. Bh4 {[%emt 0:01:07]} g6 {[%emt 0:00:26]} 8. O-O {[%emt 0:02:39]} Be7 {[%emt 0:01:15]} 9. c4 {[%emt 0:06:04]} O-O {[%emt 0:02:32]} 10. Nc3 {[%emt 0:01:47]} Qe8 {[%emt 0:02:11]} 11. Nd2 {[%emt 0:06:41]} Nc6 {[%emt 0:06:19]} 12. a3 {[%emt 0:02:33]} a6 {[%emt 0:02:44]} 13. Be2 {[%emt 0:06:06]} Ng7 {[%emt 0:00:28]} 14. Bg3 {[%emt 0:05:35]} Rc8 {[%emt 0:01:43]} 15. h3 {[%emt 0:00:08]} Nd8 {[%emt 0:01:03]} 16. Bf3 {[%emt 0:01:00]} Nf5 {[%emt 0:02:23]} 17. Bh2 {[%emt 0:00:41]} h5 {[%emt 0:03:32]} 18. b4 {[%emt 0:03:56]} Kh7 {[%emt 0:01:26]} 19. Bxb7 {[%emt 0:04:22]} Nxb7 {[%emt 0:00:04]} 20. Nf3 {[%emt 0:01:13]} g5 {[%emt 0:02:36]} 21. e4 {[%emt 0:03:24]} Nh6 {[%emt 0:01:46]} 22. Qd3 {[%emt 0:01:04]} Rg8 {[%emt 0:01:18]} 23. Nd2 {[%emt 0:01:31]} Qg6 {[%emt 0:01:10]} 24. Qe2 {[%emt 0:03:16]} g4 {[%emt 0:01:11]} 25. hxg4 {[%emt 0:00:23]} Nxg4 {[%emt 0:00:44]} 26. f3 {[%emt 0:10:18]} Ne3 {[%emt 0:01:47]} 27. Rf2 {[%emt 0:02:08]} Nc2 {[%emt 0:00:07]} 28. Ra2 {[%emt 0:01:09]} Nxd4 {[%emt 0:00:07]} 29. Qf1 {[%emt 0:04:39]} c5 {[%emt 0:01:30]} 30. b5 {[%emt 0:00:59]} axb5 {[%emt 0:00:55]} 31. Nxb5 {[%emt 0:01:12]} Rg7 {[%emt 0:01:12]} 32. Kh1 {[%emt 0:01:38]} Na5 {[%emt 0:01:10]} 33. a4 {[%emt 0:01:14]} Nac6 {[%emt 0:01:31]} 34. Rb2 {[%emt 0:03:15]} Ra8 {[%emt 0:01:50]} 35. Nc3 {[%emt 0:01:52]} Bd8 {[%emt 0:00:53]} 36. Ndb1 {[%emt 0:02:01]} Qh6 {[%emt 0:04:55]} 37. Qe1 {[%emt 0:01:33]} f5 {[%emt 0:03:00]} 38. Rf1 {[%emt 0:09:44]} Qg6 {[%emt 0:04:43]} 39. Qd2 {[%emt 0:01:14]} Bg5 {[%emt 0:02:18]} 40. Bf4 {[%emt 0:00:41]} Bd8 {[%emt 0:01:50]} 41. Bh2 {[%emt 0:32:13]} Bg5 {[%emt 0:32:04]} 42. Bf4 {[%emt 0:03:41]} Na5 {[%emt 0:00:06]} 43. Na3 {[%emt 0:00:42]} Bd8 {[%emt 0:06:50]} 44. Bh2 {[%emt 0:01:33]} h4 {[%emt 0:00:20]} 45. Qe3 {[%emt 0:00:00]} Nac6 {[%emt 0:00:00]} 46. Qd2 {[%emt 0:00:00]} Qh5 {[%emt 0:00:00]} 47. Qe3 {[%emt 0:00:00]} Bg5 {[%emt 0:00:00]} 48. Bf4 {[%emt 0:00:00]} Rag8 {[%emt 0:00:00]} 49. Bxg5 {[%emt 0:00:00]} Rxg5 {[%emt 0:00:00]} 50. Qf4 {[%emt 0:00:00]} Rg3 {[%emt 0:00:00]} 51. exf5 {[%emt 0:00:00]} h3 {[%emt 0:00:00]} 52. gxh3 {[%emt 0:00:00]} e5 {[%emt 0:00:00]} 0-1